fUSD/lending_fUSD_20260505
["ID","MTS","AMOUNT","RATE_DAILY","PERIOD"]
[421583324,1777921833000,-166.66,0.00027536,30]
[421583328,1777921833000,-681.14,0.00027588,10]
[421583330,1777921833000,-262.03149037,0.00027589,2]
[421583336,1777921833000,-565.88670663,0.00027598,2]
[421583326,1777921833000,-150.0,0.00027573,5]
[421583320,1777921833000,-2500.0,0.00027499,2]
[421583310,1777921833000,-4155.67933741,0.00027499,2]
[421583318,1777921833000,-5000.0,0.00027499,2]
[421583304,1777921833000,-163.06,0.00027311,16]
[421583308,1777921833000,-531.62530686,0.00027499,2]
[421583302,1777921833000,-1506.871,0.00027216,15]
[421583306,1777921833000,-162.48539177,0.00027387,2]
[421583314,1777921833000,-1074.4825905,0.00027499,2]
[421583316,1777921833000,-175.04254418,0.00027499,2]
[421583312,1777921833000,-6709.15254716,0.00027499,2]
[421583332,1777921833000,-156.70184437,0.00027598,2]
[421583322,1777921833000,-3700.0,0.000275,10]
[421583334,1777921833000,-184.73518223,0.00027598,2]
[421583338,1777921833000,-500.0,0.00027598,2]
[421583360,1777921833000,-620.12834748,0.00027598,2]
[421583346,1777921833000,-500.0,0.00027598,2]
[421583380,1777921833000,-120655.99754725,0.00027599,3]
[421583378,1777921833000,-620.12834748,0.00027598,2]
[421583390,1777921833000,-1609.30073,0.00027599,2]
[421583376,1777921833000,-500.0,0.00027598,2]
[421583384,1777921833000,-28108.03642575,0.00027599,2]
[421583388,1777921833000,-753.07092822,0.00027599,2]
[421583382,1777921833000,-200.0,0.00027599,2]
[421583374,1777921833000,-620.12834748,0.00027598,2]
[421583372,1777921833000,-500.0,0.00027598,2]
[421583370,1777921833000,-620.12834748,0.00027598,2]
[421583358,1777921833000,-500.0,0.00027598,2]
[421583356,1777921833000,-276.94424069,0.00027598,2]
[421583354,1777921833000,-212.63114545,0.00027598,2]
[421583352,1777921833000,-500.0,0.00027598,2]
[421583364,1777921833000,-500.0,0.00027598,2]
[421583350,1777921833000,-500.0,0.00027598,2]
[421583362,1777921833000,-433.21398106,0.00027598,2]
[421583366,1777921833000,-186.91436642,0.00027598,2]
[421583348,1777921833000,-500.0,0.00027598,2]
[421583368,1777921833000,-500.0,0.00027598,2]
[421583404,1777921838000,-2046.03165872,0.00027599,2]
[421583400,1777921838000,-974.29745345,0.00027159,2]
[421583401,1777921838000,-859.18012633,0.00027599,2]
[421583403,1777921838000,-558.30896708,0.00027599,2]
[421583402,1777921838000,-1222.10362896,0.00027599,2]
[421583406,1777921838000,-252.9257169,0.00027599,2]
[421583405,1777921838000,-128687.44681212,0.00027599,2]
[421583408,1777921838000,-380.24418438,0.00027599,2]
[421583409,1777921838000,-6859.99277437,0.00027599,2]
[421583407,1777921838000,-580.29201335,0.00027599,2]
[421583413,1777921840000,-567.61,0.00027589,10]
[421583414,1777921840000,-977878.14169529,0.00027599,2]
[421583443,1777921841000,-829.0,0.00027785,5]
[421583440,1777921841000,-901.0,0.00027722,10]
[421583439,1777921841000,-461.0,0.00027722,10]
[421583448,1777921841000,-1535.0,0.000278,3]
[421583450,1777921841000,-1535.0,0.000278,3]
[421583447,1777921841000,-1535.0,0.000278,3]
[421583458,1777921841000,-151.0,0.000278,3]
[421583449,1777921841000,-151.0,0.000278,3]
[421583451,1777921841000,-151.0,0.000278,3]
[421583456,1777921841000,-151.0,0.000278,3]
[421583457,1777921841000,-151.0,0.000278,3]
[421583455,1777921841000,-151.0,0.000278,3]
[421583442,1777921841000,-845.0,0.00027785,5]
[421583454,1777921841000,-151.0,0.000278,3]
[421583452,1777921841000,-956.46945648,0.000278,3]
[421583459,1777921841000,-151.0,0.000278,3]
[421583460,1777921841000,-151.0,0.000278,3]
[421583462,1777921841000,-151.0,0.000278,3]
[421583461,1777921841000,-151.0,0.000278,3]
[421583463,1777921841000,-151.0,0.000278,3]
[421583470,1777921841000,-151.0,0.000278,3]
[421583453,1777921841000,-156.35640537,0.000278,3]
[421583436,1777921841000,-11200.0,0.000277,10]
[421583424,1777921841000,-3233.0993646,0.00027674,2]
[421583444,1777921841000,-871.0,0.00027785,5]
[421583464,1777921841000,-151.0,0.000278,3]
[421583415,1777921841000,-649.53163563,0.00027159,2]
[421583416,1777921841000,-350204.92433853,0.00027599,2]
[421583417,1777921841000,-23126.0475,0.00027599,2]
[421583418,1777921841000,-1286.8957,0.000276,2]
[421583419,1777921841000,-7400.0,0.000276,10]
[421583422,1777921841000,-132698.9014608,0.00027674,2]
[421583421,1777921841000,-1213.5360548,0.00027674,2]
[421583426,1777921841000,-9512.0036392,0.00027674,2]
[421583427,1777921841000,-129866.8924422,0.00027674,2]
[421583438,1777921841000,-785.0,0.00027722,10]
[421583428,1777921841000,-151.3364896,0.00027674,2]
[421583429,1777921841000,-6709.15254716,0.00027693,2]
[421583430,1777921841000,-200.0,0.00027699,2]
[421583420,1777921841000,-3112.1688661,0.00027674,2]
[421583432,1777921841000,-151.0,0.00027699,2]
[421583434,1777921841000,-1000.0,0.00027699,2]
[421583433,1777921841000,-375.0525258,0.00027699,2]
[421583446,1777921841000,-1535.0,0.000278,3]
[421583435,1777921841000,-918.72499212,0.00027699,2]
[421583445,1777921841000,-162.48539177,0.00027799,3]
[421583441,1777921841000,-4155.67933735,0.00027766,2]
[421583425,1777921841000,-1041.403566,0.00027674,2]
[421583465,1777921841000,-151.0,0.000278,3]
[421583431,1777921841000,-500.0,0.00027699,7]
[421583466,1777921841000,-151.0,0.000278,3]
[421583492,1777921841000,-151.0,0.000279,7]
[421583490,1777921841000,-314.0,0.000279,2]
[421583498,1777921841000,-151.0,0.000279,7]
[421583509,1777921841000,-151.0,0.000279,7]
[421583510,1777921841000,-151.0,0.000279,7]
[421583499,1777921841000,-720.09690961,0.000279,2]
[421583501,1777921841000,-151.0,0.000279,7]
[421583500,1777921841000,-151.0,0.000279,7]
[421583502,1777921841000,-151.0,0.000279,7]
[421583505,1777921841000,-151.0,0.000279,7]
[421583497,1777921841000,-151.0,0.000279,7]
[421583508,1777921841000,-151.0,0.000279,7]
[421583507,1777921841000,-151.0,0.000279,7]
[421583506,1777921841000,-151.0,0.000279,7]
[421583504,1777921841000,-151.0,0.000279,7]
[421583512,1777921841000,-151.0,0.000279,7]
[421583511,1777921841000,-151.0,0.000279,7]
[421583514,1777921841000,-1361.70487578,0.000279,2]
[421583513,1777921841000,-151.0,0.000279,7]
[421583516,1777921841000,-431.26,0.00027972,2]
[421583517,1777921841000,-150.0,0.00027973,5]
[421583467,1777921841000,-151.0,0.000278,3]
[421583503,1777921841000,-151.0,0.000279,7]
[421583494,1777921841000,-151.0,0.000279,7]
[421583515,1777921841000,-837.81176704,0.00027926,2]
[421583484,1777921841000,-986.72,0.000279,7]
[421583469,1777921841000,-151.0,0.000278,3]
[421583468,1777921841000,-151.0,0.000278,3]
[421583491,1777921841000,-155.87585118,0.000279,2]
[421583473,1777921841000,-165.2,0.00027801,2]
[421583474,1777921841000,-165.21,0.00027801,2]
[421583475,1777921841000,-165.21,0.00027801,2]
[421583472,1777921841000,-14900.0,0.000278,10]
[421583477,1777921841000,-165.21,0.00027801,2]
[421583482,1777921841000,-142770.11,0.000279,7]
[421583478,1777921841000,-165.21,0.00027801,2]
[421583481,1777921841000,-524.37061754,0.000279,2]
[421583476,1777921841000,-165.21,0.00027801,2]
[421583471,1777921841000,-302.0,0.000278,3]
[421583480,1777921841000,-6709.15254716,0.00027887,2]
[421583483,1777921841000,-162.48539177,0.000279,7]
[421583487,1777921841000,-1277.77777,0.000279,2]
[421583488,1777921841000,-18700.0,0.000279,10]
[421583493,1777921841000,-151.0,0.000279,7]
[421583486,1777921841000,-11991.02536617,0.000279,2]
[421583495,1777921841000,-151.0,0.000279,7]
[421583485,1777921841000,-496.28504435,0.000279,2]
[421583489,1777921841000,-10000.0,0.000279,2]
[421583479,1777921841000,-165.21,0.00027801,2]
[421583496,1777921841000,-881.0,0.000279,2]
[421583525,1777921842000,-669.67353921,0.00027999,10]
[421583522,1777921842000,-670.23276528,0.00027999,10]
[421583521,1777921842000,-300.0,0.00027999,10]
[421583519,1777921842000,-2463.0,0.00027979,2]
[421583520,1777921842000,-928.0,0.00027979,2]
[421583518,1777921842000,-200.0,0.00027976,2]
[421583523,1777921842000,-300.0,0.00027999,10]
[421583526,1777921842000,-1063.40729113,0.00027999,15]
[421583530,1777921842000,-1884.63167778,0.00027999,2]
[421583528,1777921842000,-5491.05352732,0.00027999,2]
[421583529,1777921842000,-150.0,0.00027999,2]
[421583524,1777921842000,-300.0,0.00027999,10]
[421583532,1777921842000,-914281.7500409,0.00028,30]
[421583531,1777921842000,-162.48539177,0.00028,3]
[421583533,1777921842000,-3924.77440229,0.00028,30]
[421583534,1777921842000,-2878.09324054,0.00028,30]
[421583527,1777921842000,-150.0,0.00027999,2]
[421583555,1777921843000,-291.00102493,0.000278,10]
[421583554,1777921843000,-509.0,0.00027137,2]
[421583556,1777921843000,-375.05252581,0.00027999,2]
[421583559,1777921843000,-1082.55272606,0.00027599,2]
[421583557,1777921843000,-151.0,0.00027999,2]
[421583558,1777921843000,-595006.79196132,0.00028,30]
[421583560,1777921843000,-2964.44727394,0.00028,30]
[421583570,1777921846000,-725.3672,0.00028,30]
[421583569,1777921846000,-10816.68196084,0.00028,30]
[421583566,1777921846000,-4503.29864965,0.00028,30]
[421583567,1777921846000,-1538.77951083,0.00028,30]
[421583568,1777921846000,-2843.36225276,0.00028,30]
[421583565,1777921846000,-187.5262629,0.00027999,2]
[421583575,1777922709000,173.56,0.00026864,120]
[421583577,1777922799000,-120.01431575,0.00016119,2]
[421583576,1777922799000,-154.67,0.00013432,2]
[421583578,1777922976000,150.0,9.834e-05,2]
[421583591,1777923033000,-2300.0,0.000146,5]
[421583604,1777923033000,-480.06460642,0.000149,2]
[421583588,1777923033000,-8927.14698573,0.00014,2]
[421583590,1777923033000,-1100.0,0.000145,5]
[421583583,1777923033000,-150.0,0.00012834,2]
[421583580,1777923033000,-150.0,0.00010834,2]
[421583584,1777923033000,-150.0,0.00013834,2]
[421583581,1777923033000,-150.0,0.00011834,2]
[421583582,1777923033000,-26031.77820633,0.00012,2]
[421583606,1777923033000,-12437.52308894,0.000149,2]
[421583586,1777923033000,-250.0,0.00014,2]
[421583593,1777923033000,-3400.0,0.000147,5]
[421583585,1777923033000,-1200.0,0.00013999,2]
[421583597,1777923033000,-150.0,0.00014834,2]
[421583623,1777923033000,-30718.75129043,0.00015,2]
[421583626,1777923033000,-11036.47040098,0.00015,2]
[421583619,1777923033000,-150.0,0.00014999,2]
[421583600,1777923033000,-163.27782414,0.000149,2]
[421583602,1777923033000,-5800.0,0.000149,5]
[421583621,1777923033000,-300.0,0.00014999,2]
[421583615,1777923033000,-556.45134134,0.00014999,2]
[421583610,1777923033000,-396.12069464,0.00014999,2]
[421583612,1777923033000,-259.42230283,0.00014999,2]
[421583595,1777923033000,-4600.0,0.000148,5]
[421583617,1777923033000,-372.57441712,0.00014999,2]
[421583608,1777923033000,-500.0,0.00014999,2]
[421583661,1777923037000,-578.10220729,0.00015,2]
[421583682,1777923040000,-2137.9822266,0.00015,2]
[421583681,1777923040000,-1971.275,0.00015,2]
[421583697,1777923045000,-5626.69302025,0.00015,2]
[421583696,1777923045000,-1041.20961511,0.00015,2]
[421583700,1777923047000,-480097.18368832,0.00015,2]
[421583701,1777923048000,-30.52047953,0.00015,2]
[421583710,1777923542000,151.49,9.723e-05,2]
[421583716,1777923574000,-300.0,0.00014899,2]
[421583717,1777923574000,-349.0,0.000149,2]
[421583718,1777923574000,-320.04307094,0.000149,2]
[421583715,1777923574000,-1200.0,0.00014899,2]
[421583712,1777923574000,-1730.419,0.000147,2]
[421583713,1777923574000,-172.663,0.000147,2]
[421583714,1777923574000,-200.0,0.00014899,2]
[421583711,1777923574000,-151.49,0.00012965,2]
[421583719,1777923574000,-3324.54346988,0.000149,2]
[421583728,1777923575000,-500.0,0.00014999,2]
[421583729,1777923575000,-500.0,0.00014999,2]
[421583726,1777923575000,-341.11629806,0.00014999,2]
[421583727,1777923575000,-500.0,0.00014999,2]
[421583722,1777923575000,-500.0,0.00014999,2]
[421583723,1777923575000,-500.0,0.00014999,2]
[421583721,1777923575000,-500.0,0.00014999,2]
[421583720,1777923575000,-500.0,0.00014999,2]
[421583724,1777923575000,-500.0,0.00014999,2]
[421583730,1777923575000,-500.0,0.00014999,2]
[421583725,1777923575000,-500.0,0.00014999,2]
[421583733,1777923575000,-500.0,0.00014999,2]
[421583732,1777923575000,-500.0,0.00014999,2]
[421583736,1777923575000,-500.0,0.00014999,2]
[421583734,1777923575000,-500.0,0.00014999,2]
[421583735,1777923575000,-500.0,0.00014999,2]
[421583738,1777923575000,-500.0,0.00014999,2]
[421583739,1777923575000,-500.0,0.00014999,2]
[421583740,1777923575000,-500.0,0.00014999,2]
[421583737,1777923575000,-500.0,0.00014999,2]
[421583741,1777923575000,-1481910.72516112,0.00015,2]
[421583731,1777923575000,-500.0,0.00014999,2]
[421583742,1777923751000,163.42,0.00025421,120]
[421583743,1777923752000,163.42,0.00028599,120]
[421583745,1777924150000,-172.663,0.000147,2]
[421583744,1777924150000,-1384.335,0.000147,2]
[421583748,1777924150000,-700.0,0.000148,5]
[421583749,1777924150000,-2975.91704671,0.000149,2]
[421583747,1777924150000,-175.84298729,0.000147,2]
[421583746,1777924150000,-300.0,0.000147,5]
[421583759,1777924231000,-2992.08912291,0.000149,2]
[421583761,1777924231000,-1889.15941613,0.000149,2]
[421583760,1777924231000,-175.04254418,0.000149,2]
[421583758,1777924231000,-1100.0,0.000149,5]
[421583757,1777924231000,-455.67883446,0.000149,2]
[421583756,1777924231000,-1720.48973632,0.000149,2]
[421583755,1777924231000,-700.0,0.00014899,2]
[421583754,1777924231000,-500.0,0.00014899,2]
[421583763,1777924232000,-216.46316919,0.0001499,2]
[421583768,1777924232000,-91914.95126502,0.00014999,2]
[421583766,1777924232000,-616.67961138,0.00014999,2]
[421583764,1777924232000,-500.0,0.00014999,2]
[421583762,1777924232000,-28451.0379798,0.00014954,2]
[421583765,1777924232000,-460.54237553,0.00014999,2]
[421583767,1777924232000,-150.0,0.00014999,2]
[421583876,1777924237000,-500.0,0.00014998,2]
[421583877,1777924237000,-232.69772365,0.00014998,2]
[421583875,1777924237000,-500.0,0.00014998,2]
[421583907,1777924238000,-500.0,0.00014998,2]
[421583893,1777924238000,-500.0,0.00014998,2]
[421583899,1777924238000,-500.0,0.00014998,2]
[421583901,1777924238000,-500.0,0.00014998,2]
[421583900,1777924238000,-500.0,0.00014998,2]
[421583903,1777924238000,-500.0,0.00014998,2]
[421583895,1777924238000,-500.0,0.00014998,2]
[421583905,1777924238000,-500.0,0.00014998,2]
[421583906,1777924238000,-500.0,0.00014998,2]
[421583898,1777924238000,-500.0,0.00014998,2]
[421583892,1777924238000,-500.0,0.00014998,2]
[421583888,1777924238000,-57.62056632,0.00014998,2]
[421583896,1777924238000,-500.0,0.00014998,2]
[421583891,1777924238000,-500.0,0.00014998,2]
[421583890,1777924238000,-500.0,0.00014998,2]
[421583889,1777924238000,-500.0,0.00014998,2]
[421583882,1777924238000,-500.0,0.00014998,2]
[421583886,1777924238000,-500.0,0.00014998,2]
[421583885,1777924238000,-394.05227532,0.00014998,2]
[421583884,1777924238000,-105.94772468,0.00014998,2]
[421583887,1777924238000,-328.64250468,0.00014998,2]
[421583883,1777924238000,-500.0,0.00014998,2]
[421583881,1777924238000,-267.30227635,0.00014998,2]
[421583894,1777924238000,-500.0,0.00014998,2]
[421583902,1777924238000,-500.0,0.00014998,2]
[421583897,1777924238000,-500.0,0.00014998,2]
[421583909,1777924238000,-500.0,0.00014998,2]
[421583904,1777924238000,-500.0,0.00014998,2]
[421583957,1777924238000,-877.88536525,0.00015,2]
[421583955,1777924238000,-904.1372,0.00015,2]
[421583953,1777924238000,-23163.05043461,0.00015,2]
[421583949,1777924238000,-1128.37587025,0.00015,2]
[421583938,1777924238000,-500.0,0.00014998,2]
[421583940,1777924238000,-500.0,0.00014998,2]
[421583934,1777924238000,-500.0,0.00014998,2]
[421583936,1777924238000,-500.0,0.00014998,2]
[421583932,1777924238000,-500.0,0.00014998,2]
[421583930,1777924238000,-500.0,0.00014998,2]
[421583944,1777924238000,-11487.00861991,0.00014999,2]
[421583946,1777924238000,-706580.56275793,0.00015,2]
[421583925,1777924238000,-500.0,0.00014998,2]
[421583923,1777924238000,-500.0,0.00014998,2]
[421583927,1777924238000,-500.0,0.00014998,2]
[421583928,1777924238000,-500.0,0.00014998,2]
[421583921,1777924238000,-500.0,0.00014998,2]
[421583919,1777924238000,-500.0,0.00014998,2]
[421583912,1777924238000,-500.0,0.00014998,2]
[421583914,1777924238000,-500.0,0.00014998,2]
[421583917,1777924238000,-500.0,0.00014998,2]
[421583916,1777924238000,-500.0,0.00014998,2]
[421583910,1777924238000,-500.0,0.00014998,2]
[421583908,1777924238000,-500.0,0.00014998,2]
[421583942,1777924238000,-311.21163972,0.00014998,2]
[421584154,1777924240000,-403.46388559,0.00015,2]
[421584146,1777924240000,-151.88198565,0.00014999,2]
[421584148,1777924240000,-108.06260998,0.00015,2]
[421584225,1777924240000,-1106196.17615144,0.00015,2]
[421584233,1777924240000,-1649.00125136,0.00015,2]
[421584437,1777924243000,-330.9,0.0001841,2]
[421584438,1777924243000,-1386.78395259,0.00018446,2]
[421584439,1777924243000,-166.66,0.00018497,2]
[421584451,1777924243000,-173.53,0.0001908,2]
[421584441,1777924243000,-154.67,0.00018805,2]
[421584442,1777924243000,-2992.08912289,0.00018808,2]
[421584440,1777924243000,-500.0,0.00018797,2]
[421584452,1777924243000,-2000.0,0.00019085,2]
[421584443,1777924243000,-150.0,0.00018834,2]
[421584448,1777924243000,-1438.09495884,0.00018994,2]
[421584445,1777924243000,-695.07,0.00018856,2]
[421584444,1777924243000,-588.94,0.00018856,2]
[421584449,1777924243000,-200.0,0.00019059,2]
[421584446,1777924243000,-3059.37,0.00018856,2]
[421584447,1777924243000,-4696.40678301,0.00018967,2]
[421584450,1777924243000,-163.42,0.00019066,2]
[421584453,1777924243000,-168.32,0.00019097,2]
[421584455,1777924243000,-166.66,0.00019146,2]
[421584464,1777924243000,-150.0,0.00019834,2]
[421584454,1777924243000,-200.0,0.00019112,2]
[421584457,1777924243000,-262.23,0.00019288,2]
[421584458,1777924243000,-250.0,0.00019424,2]
[421584463,1777924243000,-3292.0,0.00019831,2]
[421584433,1777924243000,-2351.0,0.00018028,2]
[421584430,1777924243000,-150.0,0.00017834,2]
[421584419,1777924243000,-330.9,0.00016438,2]
[421584435,1777924243000,-500.0,0.0001813,2]
[421584407,1777924243000,-30164.37512483,0.00015,2]
[421584408,1777924243000,-151.0,0.00015,2]
[421584406,1777924243000,-940.17226667,0.000149,2]
[421584410,1777924243000,-152.0,0.00015009,7]
[421584409,1777924243000,-375.0525258,0.00015,2]
[421584465,1777924243000,-160.0,0.0002,2]
[421584412,1777924243000,-150.0,0.00015834,2]
[421584413,1777924243000,-150.0,0.00015943,2]
[421584414,1777924243000,-300.0,0.00016,2]
[421584416,1777924243000,-203.30786408,0.0001617,2]
[421584418,1777924243000,-1680.0,0.00016389,2]
[421584431,1777924243000,-200.0,0.00017898,2]
[421584417,1777924243000,-151.49,0.00016206,2]
[421584420,1777924243000,-150.0,0.00016834,2]
[421584423,1777924243000,-200.0,0.0001735,2]
[421584421,1777924243000,-2992.08912289,0.00016854,2]
[421584422,1777924243000,-4696.40678301,0.00016933,2]
[421584424,1777924243000,-1289.58892491,0.0001735,2]
[421584425,1777924243000,-7194.74,0.00017728,2]
[421584429,1777924243000,-10356.2,0.00017728,2]
[421584428,1777924243000,-150.99,0.00017728,2]
[421584427,1777924243000,-11994.59,0.00017728,2]
[421584426,1777924243000,-9999.99,0.00017728,2]
[421584432,1777924243000,-1337.30371513,0.00017898,2]
[421584415,1777924243000,-34.65568425,0.00016119,2]
[421584459,1777924243000,-1699.23,0.00019432,2]
[421584411,1777924243000,-4483.95,0.0001531,2]
[421584460,1777924243000,-151.49,0.00019447,2]
[421584494,1777924243000,-1736.13726747,0.00020638,2]
[421584504,1777924243000,-256.0,0.00021,2]
[421584505,1777924243000,-154.0,0.00021,2]
[421584493,1777924243000,-412.0,0.0002059,2]
[421584506,1777924243000,-159.0,0.00021,2]
[421584496,1777924243000,-2992.08912289,0.00020762,2]
[421584495,1777924243000,-150.0,0.00020688,4]
[421584497,1777924243000,-400.0,0.00020822,2]
[421584502,1777924243000,-160.0,0.00021,2]
[421584498,1777924243000,-150.0,0.00020834,2]
[421584501,1777924243000,-151.0,0.00020874,2]
[421584492,1777924243000,-151.0,0.00020504,2]
[421584500,1777924243000,-600.0,0.00020834,7]
[421584503,1777924243000,-156.0,0.00021,2]
[421584508,1777924243000,-4696.40678301,0.00021,2]
[421584514,1777924243000,-224.69712238,0.000215,2]
[421584507,1777924243000,-368.0,0.00021,2]
[421584510,1777924243000,-402.0,0.00021126,2]
[421584511,1777924243000,-150.0,0.00021421,4]
[421584509,1777924243000,-168.32,0.00021006,2]
[421584512,1777924243000,-2000.0,0.0002147,2]
[421584513,1777924243000,-154.67,0.00021492,2]
[421584516,1777924243000,-27843.8468482,0.00021519,2]
[421584515,1777924243000,-299.7904652,0.00021519,2]
[421584499,1777924243000,-1500.0,0.00020834,2]
[421584491,1777924243000,-407.0,0.00020501,2]
[421584456,1777924243000,-455.6788344,0.00019268,2]
[421584486,1777924243000,-404.0,0.00020415,2]
[421584489,1777924243000,-166.66,0.00020444,2]
[421584462,1777924243000,-166.66,0.00019795,2]
[421584478,1777924243000,-330.9,0.00020381,2]
[421584468,1777924243000,-154.0,0.0002,2]
[421584477,1777924243000,-150.0,0.00020293,2]
[421584469,1777924243000,-159.0,0.0002,2]
[421584467,1777924243000,-256.0,0.0002,2]
[421584466,1777924243000,-156.0,0.0002,2]
[421584476,1777924243000,-150.0,0.00020293,2]
[421584470,1777924243000,-368.0,0.0002,2]
[421584471,1777924243000,-1546.48273779,0.0002009,2]
[421584473,1777924243000,-402.0,0.00020266,2]
[421584461,1777924243000,-1491.30447232,0.00019542,2]
[421584475,1777924243000,-150.0,0.00020293,2]
[421584474,1777924243000,-150.0,0.00020293,2]
[421584490,1777924243000,-397.0,0.00020469,2]
[421584488,1777924243000,-409.0,0.00020444,2]
[421584487,1777924243000,-413.0,0.00020427,2]
[421584484,1777924243000,-407.0,0.00020399,2]
[421584485,1777924243000,-400.0,0.00020406,2]
[421584483,1777924243000,-402.0,0.00020394,2]
[421584481,1777924243000,-402.0,0.0002039,2]
[421584479,1777924243000,-3132.07,0.00020384,2]
[421584472,1777924243000,-412.0,0.00020193,2]
[421584480,1777924243000,-400.0,0.00020388,2]
[421584541,1777924244000,-599.19,0.00022562,2]
[421584552,1777924244000,-4746.12386949,0.00023,2]
[421584551,1777924244000,-500.0,0.00022973,2]
[421584544,1777924244000,-580.68109134,0.000226,2]
[421584548,1777924244000,-154.88864704,0.00022831,2]
[421584549,1777924244000,-150.0,0.00022834,2]
[421584545,1777924244000,-529.669932,0.0002271,2]
[421584546,1777924244000,-411.0,0.00022714,2]
[421584550,1777924244000,-580.68109134,0.000229,2]
[421584553,1777924244000,-305025.93316622,0.00023,2]
[421584555,1777924244000,-256.0,0.00023,2]
[421584554,1777924244000,-160.0,0.00023,2]
[421584565,1777924244000,-2000.0,0.00023856,2]
[421584557,1777924244000,-159.0,0.00023,2]
[421584556,1777924244000,-160.52156229,0.00023,2]
[421584566,1777924244000,-160.0,0.00024,2]
[421584567,1777924244000,-256.0,0.00024,2]
[421584558,1777924244000,-368.0,0.00023,2]
[421584562,1777924244000,-455.6788344,0.00023635,2]
[421584564,1777924244000,-150.0,0.00023834,2]
[421584542,1777924244000,-2637.39,0.00022562,2]
[421584547,1777924244000,-2992.08912289,0.00022716,2]
[421584543,1777924244000,-1986.0074906,0.000226,2]
[421584527,1777924244000,-580.68109134,0.00022,2]
[421584532,1777924244000,-330.9,0.00022353,2]
[421584517,1777924244000,-2501.0,0.00021814,2]
[421584525,1777924244000,-154.0,0.00022,2]
[421584520,1777924244000,-5000.0,0.00021918,2]
[421584522,1777924244000,-160.0,0.00022,2]
[421584524,1777924244000,-256.0,0.00022,2]
[421584518,1777924244000,-150.0,0.00021834,2]
[421584519,1777924244000,-407.0,0.00021898,2]
[421584521,1777924244000,-154.9,0.00021918,2]
[421584523,1777924244000,-168.61279268,0.00022,2]
[421584526,1777924244000,-159.0,0.00022,2]
[421584540,1777924244000,-507.71,0.00022562,2]
[421584528,1777924244000,-368.0,0.00022,2]
[421584561,1777924244000,-637.0,0.000235,5]
[421584539,1777924244000,-150.0,0.00022548,4]
[421584537,1777924244000,-169.76,0.00022466,2]
[421584538,1777924244000,-150.0,0.00022548,4]
[421584530,1777924244000,-580.68109134,0.000222,2]
[421584533,1777924244000,-580.68109134,0.000224,2]
[421584535,1777924244000,-154.92350509,0.00022407,2]
[421584531,1777924244000,-163.42,0.00022244,2]
[421584534,1777924244000,-154.92350511,0.00022407,2]
[421584536,1777924244000,-154.92350509,0.00022407,2]
[421584529,1777924244000,-243.15927484,0.0002211,2]
[421584560,1777924244000,-565.0,0.000235,5]
[421584577,1777924244000,-150.0,0.00024834,2]
[421584563,1777924244000,-154.89,0.00023744,2]
[421584595,1777924244000,-1351.0,0.00026654,2]
[421584559,1777924244000,-4696.40678301,0.00023033,2]
[421584597,1777924244000,-1221.0,0.00026654,2]
[421584598,1777924244000,-6040.0,0.00026654,2]